Cogmind - Beta 17 @@@ ROGUE MODE // 2026.07.02 @ 02:38:00 Player: TheSkyeDoctor Result: Destroyed by G-67 Veteran with Plasma Rifle Performance ------------- Evolutions (7) 3500 Regions Visited (18) 3600 Robots Destroyed (143) 715 Value Destroyed (6298) 6298 Prototype IDs (40) 800 Alien Tech Used (1) 200 Bonus (1081) 1081 TOTAL SCORE: 16194 Bonus ------- High Alert Combat Kills 304 Follower Combat Kills 177 Aligned with FarCom 300 Met Data Miner 300 Cogmind --------- Core Integrity 0/1300 Matter 53/300 Energy 100/100 System Corruption 84% Temperature Cool (24) Movement Walking (120) Location -3/Research Parts ------- > --- POWER (2) -------- (None) > --- PROPULSION (8) --- Improved Thunder Leg > --- UTILITY (7) ------ Advanced Coolant Injector Enhanced Optical Array Experimental Optical Array Advanced Signal Interpreter Advanced Target Analyzer > --- WEAPON (4) ------- KE Penetrator > --- INVENTORY (5) ---- Diametric Drive Hardened Heavy Armor Plating Advanced Force Field Advanced Force Field Peak State ------------ > --- POWER ------------ Micro Antimatter Reactor Micro Antimatter Reactor > --- PROPULSION ------- Flexi-carbon Leg Flexi-carbon Leg Improved Thunder Leg Heavy Armored Exoskeleton Diametric Drive > --- UTILITY ---------- Advanced Coolant Injector Large Storage Unit Energy Well Enhanced Optical Array Advanced Signal Interpreter Advanced Target Analyzer Core Analyzer > --- WEAPON ----------- Gamma Rifle Gamma Rifle Compact HERF Cannon Lance > --- INVENTORY -------- Diametric Drive Diametric Drive Powered Armor Powered Armor Nova Cannon Gamma Bomb Array [Rating: 142] Favorites ----------- Power Particle Reactor Engine Deuterium Engine Power Core Micro Nuclear Core Reactor Particle Reactor Propulsion Multireflex Exoskeleton Treads Light Treads Leg Multireflex Exoskeleton Wheel Compact Wheel Flight Unit Flying Fortress v7 Utility Advanced Signal Interpreter Device Advanced Force Field Storage Large Storage Unit Processor Advanced Signal Interpreter Hackware System Shield Protection Improved Propulsion Shielding Weapon Assault Rifle Energy Gun Field Laser Energy Cannon Advanced Plasma Cannon Ballistic Gun Assault Rifle Ballistic Cannon Heavy Flak Cannon Launcher Rocket Launcher Impact Weapon Power Maul Slashing Weapon Chainsword Piercing Weapon Lance Special Melee Weapon Datajack Build | -11 -10 -10 -10 -9 -8 -7 -7 -7 -7 -6 -6 -5 -5 -5 -4 -4 -4 -3 ------- Run | Yrd Mat Min Exi Min Mat Fac Low Low Dat Pro Fac Fac Upp Upp Fac Upp Upp Res Slots Evolved 14 | . . . . . 4 2 . . . . 2 2 . . 2 . . 2 Power 1 | . . . . . . . . . . . . . . . . . . 1 Propulsion 6 | . . . . . 2 1 . . . . 1 . . . 2 . . . Utility 5 | . . . . . . 1 . . . . 1 2 . . . . . 1 Weapon 2 | . . . . . 2 . . . . . . . . . . . . . Parts Attached 125 | 7 . 2 1 . 15 8 . . . 6 13 8 1 1 2 8 1 52 Power 18 | 1 . 1 . . 2 . . . . 2 1 . . . . . . 11 Engine 6 | 1 . 1 . . 2 . . . . 1 . . . . . . . 1 Core 1 | . . . . . . . . . . 1 . . . . . . . . Reactor 11 | . . . . . . . . . . . 1 . . . . . . 10 Propulsion 33 | 2 . 1 . . 4 3 . . . 2 2 3 . . 1 . . 15 Treads 6 | 2 . 1 . . 3 . . . . . . . . . . . . . Leg 16 | . . . . . . . . . . . . 3 . . 1 . . 12 Wheel 3 | . . . . . 1 . . . . 1 1 . . . . . . . Hover . | . . . . . . . . . . . . . . . . . . . Flight 8 | . . . . . . 3 . . . 1 1 . . . . . . 3 Utility 31 | 2 . . 1 . 2 2 . . . . 6 2 . . 1 3 1 11 Device 9 | 1 . . . . 1 . . . . . 2 . . . 1 1 . 3 Storage 5 | 1 . . 1 . . . . . . . . . . . . . 1 2 Processor 7 | . . . . . . . . . . . 2 1 . . . . . 4 Hackware 4 | . . . . . . 2 . . . . 1 . . . . 1 . . Protection 6 | . . . . . 1 . . . . . 1 1 . . . 1 . 2 Artifact . | . . . . . . . . . . . . . . . . . . . Weapon 43 | 2 . . . . 7 3 . . . 2 4 3 1 1 . 5 . 15 Energy Gun 12 | . . . . . 1 2 . . . . . 2 . 1 . 3 . 3 Energy Cannon 8 | . . . . . 2 . . . . . 1 1 . . . 1 . 3 Ballistic Gun 8 | 2 . . . . . . . . . 1 1 . . . . . . 4 Ballistic Cannon 5 | . . . . . 1 . . . . . . . 1 . . . . 3 Launcher 4 | . . . . . 2 . . . . 1 . . . . . . . 1 Special Weapon . | . . . . . . . . . . . . . . . . . . . Impact Weapon 2 | . . . . . 1 1 . . . . . . . . . . . . Slashing Weapon 2 | . . . . . . . . . . . 1 . . . . 1 . . Piercing Weapon 1 | . . . . . . . . . . . . . . . . . . 1 Special Melee Weapon 1 | . . . . . . . . . . . 1 . . . . . . . Unidentified Prototypes 9 | . . . . . 1 2 . . . 1 . 1 . 1 . . . 3 Corrupted Parts 3 | . . . . . . . . . . . 1 . . . . . . 2 System Corruption 21 | . . . . . . . . . . . 10 . . . . . . 11 Parts Lost 93 | . . . . . 10 . . . . 7 14 1 2 . . 8 . 51 Power 15 | . . . . . 2 . . . . 1 1 . . . . 1 . 10 Propulsion 25 | . . . . . 3 . . . . 2 4 . . . . . . 16 Utility 16 | . . . . . 2 . . . . . 4 . . . . 3 . 7 Weapon 37 | . . . . . 3 . . . . 4 5 1 2 . . 4 . 18 Highest Loss Streak 12 | . . . . . 2 . . . . 7 6 1 1 . . 5 . 12 To Critical Strikes . | . . . . . . . . . . . . . . . . . . . Average Backups 7 | 2 2 6 7 9 9 12 14 14 14 10 11 3 3 3 3 3 5 6 Power . | . 1 1 1 1 1 . 1 1 1 . . . . . . . . . Propulsion 1 | . 1 1 1 2 1 1 1 1 1 . . 1 2 2 1 1 1 . Utility 3 | . . 2 3 3 3 6 6 6 6 5 7 1 1 1 1 2 3 3 Weapon 1 | . . 1 2 2 1 2 4 4 4 2 1 . . . . . . 2 Tool/Special . | . . . . . . . . . . . . . . . . . . . Unused Backups 8 | . . . . . 1 . . . . 1 2 . . . . . . 4 Power 1 | . . . . . . . . . . 1 . . . . . . . . Propulsion . | . . . . . . . . . . . . . . . . . . . Utility 6 | . . . . . 1 . . . . . 1 . . . . . . 4 Weapon . | . . . . . . . . . . . . . . . . . . . Tool/Special 1 | . . . . . . . . . . . 1 . . . . . . . Average Slot Usage (%) 73 | . 100 100 100 100 70 69 76 76 76 62 44 73 79 80 78 76 71 69 Engine 3 | . 14 14 14 14 8 7 7 7 7 5 2 . . . . . . . Reactor 2 | . . . . . . . . . . . . 4 5 5 5 5 . 4 Treads 5 | . 28 28 28 28 13 . . . . . . . . . . . . . Leg 10 | . . . . . . . . . . . . 14 17 17 21 21 21 17 Flight 1 | . . . . . . 7 15 15 15 11 4 . . . . . . . Device 5 | . 14 14 14 14 3 . . . . . 3 5 5 5 5 4 3 3 Storage 5 | . 14 14 14 14 9 7 7 7 7 7 5 . . . . . 1 4 Processor 9 | . . . . . . . . . . . . 17 17 17 15 15 15 17 Hackware 5 | . . . . . . 14 15 15 15 15 10 5 5 5 5 9 8 2 Protection 1 | . . . . . 3 . . . . . . 4 5 4 5 . . . Energy Gun 5 | . . . . . 1 10 15 15 15 4 . 5 5 4 5 13 15 3 Energy Cannon 3 | . . . . . 7 12 7 7 7 2 1 3 5 5 5 . . 2 Ballistic Gun 5 | . 28 28 28 28 3 . . . . 4 3 . . . . . . 1 Ballistic Cannon 1 | . . . . . 5 . . . . . . . 2 5 5 . . 3 Launcher 1 | . . . . . 6 . . . . . . 4 5 5 5 . . . Impact Weapon 1 | . . . . . 4 5 7 7 7 7 4 . . . . . . . Slashing Weapon 1 | . . . . . . . . . . . . . . . . 4 5 2 Peak Build Rating 142 | 7 7 12 16 16 26 63 63 63 63 66 64 90 90 87 101 106 98 142 Average Rating 67 | 4 7 10 13 16 21 55 63 63 63 54 29 77 86 86 100 103 94 106 On Entrance 50 | . 7 7 12 16 16 25 63 63 63 63 55 20 90 83 87 101 98 90 Avg Prop Armor Cover (%) 6 | . . . . . 5 . . . . . 3 . . . . . 12 8 Naked Turns . | . . . . . . . . . . . . . . . . . . . Heaviest Build 231 | 15 15 19 34 34 49 42 40 40 40 43 45 44 48 45 45 50 216 231 Greatest Support 170 | 40 40 42 42 42 42 53 53 53 53 54 54 108 108 108 144 144 144 170 Greatest Overweight (x) 16 | . . . . . 16 . . . . 2 8 . . . . . 1 6 Average Overweight (x) . | . . . . . 1 . . . . . 1 . . . . . . . Largest Inventory Capacity 35 | 8 8 8 15 15 15 15 15 15 15 15 15 5 5 5 5 5 35 35 Average Capacity 11 | 6 8 8 12 15 15 15 15 15 15 15 14 5 5 5 5 5 16 14 Most Carried 15 | 5 4 8 12 14 15 15 15 15 15 15 15 5 5 5 5 5 9 10 Average Carried 8 | 2 2 7 9 13 13 13 15 15 15 11 12 4 5 5 4 4 6 7 Final Capacity 35 | 8 8 8 15 15 15 15 15 15 15 15 5 5 5 5 5 5 35 5 Final Carried 15 | 2 4 8 12 14 15 15 15 15 15 10 5 5 5 5 5 5 9 5 Scrap Suit Usage (%) 5 | . . . . . . . . . . . 59 . . . . . . . Parts Cannibalized 1 | . . . . . . . . . . . 1 . . . . . . . Class Distribution -------------------- 31% | Mutant 16% | Hacker-Gunner 16% | Gunner 11% | Skirmisher 5% | Hacker-Mutant 5% | Scavenger-Skirmisher 4% | Hacker-Skirmisher 4% | Scavenger-Gunner Dominant Class ---------------- Mutant | -10/Materials Mutant | -10/Mines Mutant | -10/Exiles Mutant | -9/Mines Skirmisher | -8/Materials Hacker-Skirmisher | -7/Factory Hacker-Gunner | -7/Lower Caves Hacker-Gunner | -7/Lower Caves Hacker-Gunner | -7/Data Miner Hacker-Mutant | -6/Proximity Caves Mutant | -6/Factory Skirmisher | -5/Factory Gunner | -5/Upper Caves Gunner | -5/Upper Caves Skirmisher | -4/Factory Hacker-Gunner | -4/Upper Caves Hacker-Gunner | -4/Upper Caves Mutant | -3/Research Resources | -11 -10 -10 -10 -9 -8 -7 -7 -7 -7 -6 -6 -5 -5 -5 -4 -4 -4 -3 ----------- Run | Yrd Mat Min Exi Min Mat Fac Low Low Dat Pro Fac Fac Upp Upp Fac Upp Upp Res Matter Collected 3241 | 282 . 376 . 10 620 80 20 . . 95 220 . 237 138 . 141 48 974 Remotely . | . . . . . . . . . . . . . . . . . . . Salvage Created 6239 | 97 . 153 . . 1103 216 49 . . 105 789 . 376 . . 540 51 2760 Parts 308 | 8 . 13 . . 64 9 1 . . 7 17 . 15 . . 22 1 151 Haulers Intercepted . | . . . . . . . . . . . . . . . . . . . Recyclers Shooed 3 | . . . . . 2 . . . . . . . . . . . . 1 Parts Field Recycled . | . . . . . . . . . . . . . . . . . . . Retrieved Matter . | . . . . . . . . . . . . . . . . . . . Parts Self-Destructed 38 | . . . . . . . . . . 4 . . 9 . . 24 1 . Prevented 4 | . . . . . . . . . . 2 . . 2 . . . . . Parts Restored . | . . . . . . . . . . . . . . . . . . . Kills | -11 -10 -10 -10 -9 -8 -7 -7 -7 -7 -6 -6 -5 -5 -5 -4 -4 -4 -3 ------- Run | Yrd Mat Min Exi Min Mat Fac Low Low Dat Pro Fac Fac Upp Upp Fac Upp Upp Res Combat Hostiles Destroyed 117 | . . 7 . . 31 7 1 . . 5 13 . 9 . . 8 . 36 Melee 28 | . . . . . 1 . . . . 1 4 . . . . 3 . 19 Guns 22 | . . 7 . . 2 3 . . . 3 3 . 1 . . 1 . 2 Cannons 26 | . . . . . 12 . . . . . . . 1 . . 3 . 10 AOE 28 | . . . . . 16 3 . . . . 1 . 7 . . . . 1 Classes Destroyed 15 | 2 . 2 . . 4 2 1 . . . 2 . . . . 1 . 1 Worker 7 | . . . . . 1 . . . . . 1 . . . . . . 5 Builder 9 | . . . . . 1 . . . . . 7 . . . . . . 1 Tunneler 2 | 1 . . . . 1 . . . . . . . . . . . . . Recycler 6 | 1 . . . . 2 . . . . . . . . . . . . 3 Watcher 2 | . . . . . 2 . . . . . . . . . . . . . Swarmer 30 | . . 5 . . 12 . . . . 4 4 . 1 . . . . 4 Cutter 3 | . . . . . . 3 . . . . . . . . . . . . Grunt 40 | . . 2 . . 13 2 . . . . 5 . 6 . . 3 . 9 Brawler 1 | . . . . . . . . . . . 1 . . . . . . . Duelist 1 | . . . . . . . . . . . 1 . . . . . . . Sentry 11 | . . . . . 6 1 . . . . . . 1 . . 1 . 2 Specialist 3 | . . . . . . . . . . . . . . . . . . 3 Hunter 5 | . . . . . . . . . . . . . . . . 2 . 3 Programmer 22 | . . . . . . 1 . . . 1 2 . 1 . . 2 . 15 Mutant 1 | . . . . . . . 1 . . . . . . . . . . . Best Kill Streak 10 | 2 . 2 . . 10 7 1 . . 4 7 . 5 . . 3 . 7 Combat Bots Only 7 | . . 2 . . 7 7 1 . . 4 7 . 5 . . 3 . 5 Max Kills in Single Turn 4 | 1 . 1 . . 4 3 1 . . 1 2 . 2 . . 1 . 2 Gunslinging . | . . . . . . . . . . . . . . . . . . . Exploded 3 | . . . . . 3 3 . . . . 1 . 2 . . . . 1 Melee 1 | . . . . . 1 . . . . 1 1 . . . . 1 . 1 Uniques/NPCs Destroyed . | . . . . . . . . . . . . . . . . . . . Combat | -11 -10 -10 -10 -9 -8 -7 -7 -7 -7 -6 -6 -5 -5 -5 -4 -4 -4 -3 -------- Run | Yrd Mat Min Exi Min Mat Fac Low Low Dat Pro Fac Fac Upp Upp Fac Upp Upp Res Hostile Shots Fired 1592 | . . 45 . . 151 94 2 25 . 112 111 3 37 . . 123 27 862 Missed 575 | . . 14 . . 50 41 1 15 . 46 33 3 15 . . 35 10 312 Deflected 15 | . . . . . . . . . . . . . . . . . . 15 Hits 1017 | . . 31 . . 101 53 1 10 . 66 78 . 22 . . 88 17 550 Melee 5 | . . . . . . 1 . . . . 4 . . . . . . . Projectile 1012 | . . 31 . . 101 52 1 10 . 66 74 . 22 . . 88 17 550 AOE 1 | . . . . . . . . . . . . . . . . . . 1 Critical Strikes 54 | . . 1 . . 8 1 . . . 3 2 . 3 . . 5 . 31 Actively Blocked 1 | . . . . . . . . . . . . . 1 . . . . . Part Disruptions 15 | . . . . . 1 . . . . . 1 . . . . 1 . 12 Damage Taken 18505 | . . 383 . . 1458 823 20 112 . 1225 1534 39 445 . . 1540 183 10743 Core 2680 | . . 21 . . 144 343 . . . 215 359 30 36 . . 214 . 1318 Absorbed by Shields 1157 | . . . . . . . . . . . . . . . . 269 . 888 Redirected to Shielding 211 | . . . . . . . . . . . . . 79 . . 132 . . Regen/Repaired (Parts) 10 | . . . . . . . . . . . 10 . . . . . . . Core Remaining (%) 73 | 100 . . . 91 73 . . . . 20 57 . . 93 . . 81 . Volleys Fired 246 | 2 7 19 . . 60 13 . . . 14 15 . 13 2 . 16 . 85 Largest 4 | 2 2 2 . . 4 4 . . . 3 1 . 4 4 . 4 . 4 Hottest 294 | 40 40 40 . . 150 228 . . . 163 23 . 261 229 . 294 . 263 Shots Fired 536 | 4 14 38 . . 150 28 . . . 20 13 . 44 9 . 47 . 169 Gun 227 | 4 14 38 . . 26 15 . . . 15 13 . 16 3 . 28 . 55 Cannon 247 | . . . . . 87 13 . . . 2 . . 18 4 . 18 . 105 Launcher 62 | . . . . . 37 . . . . 3 . . 10 2 . 1 . 9 Special . | . . . . . . . . . . . . . . . . . . . Kinetic 229 | 4 14 38 . . 66 . . . . 9 13 . 5 2 . 4 . 74 Thermal 177 | . . . . . 47 28 . . . 8 . . 13 5 . 42 . 34 Explosive 24 | . . . . . 11 . . . . . . . 10 2 . 1 . . Electromagnetic 106 | . . . . . 26 . . . . 3 . . 16 . . . . 61 Robot Hit Streak 17 | 3 5 4 . . 6 8 . . . 10 2 . 4 . . 9 . 17 Robot Miss Streak 10 | 1 3 4 . . 5 2 . . . 6 4 . 4 . . 6 . 10 Penetration Max 1 | . . . . . . . . . . . . . . . . . . 1 Secondary Targets 2 | . . 1 . . . . . . . . . . . . . . . 1 Max Gunslinging Chain 1 | . . 1 . . . . . . . . . . . . . . . 1 Shots Hit Robots 423 | 3 8 17 . . 80 20 1 . . 14 30 . 21 . . 48 2 179 Core Hits 270 | 2 1 10 . . 57 12 . . . 13 13 . 24 . . 20 1 117 Critical Kills 3 | . . . . . . . . . . . 1 . . . . 1 . 1 Critical Parts Destroyed 8 | . . . . . . . . . . 1 7 . . . . . . . Critical Strikes 41 | . . . . . 1 1 . . . 1 8 . 1 . . 7 . 22 Burn 5 | . . . . . . 1 . . . . . . . . . 4 . . Meltdown 2 | . . . . . . . . . . . . . . . . 1 . 1 Destroy 1 | . . . . . . . . . . . . . . . . 1 . . Blast 1 | . . . . . 1 . . . . . . . . . . . . . Corrupt 5 | . . . . . . . . . . . . . 1 . . . . 4 Smash 9 | . . . . . . . . . . 1 8 . . . . . . . Sever 7 | . . . . . . . . . . . . . . . . 1 . 6 Impale 11 | . . . . . . . . . . . . . . . . . . 11 Melee Attacks 240 | . . . . . 5 9 3 . . 5 64 . . . . 17 2 135 Impact 80 | . . . . . 5 9 3 . . 5 58 . . . . . . . Slashing 85 | . . . . . . . . . . . 5 . . . . 17 2 61 Piercing 74 | . . . . . . . . . . . . . . . . . . 74 Sneak Attacks 13 | . . . . . . . . . . . 7 . . . . . . 6 Combat Hostiles . | . . . . . . . . . . . . . . . . . . . Follow-up Attacks . | . . . . . . . . . . . . . . . . . . . Martial Strikes 15 | . . . . . . . . . . . . . . . . . . 15 Damage Inflicted 15690 | 40 100 244 . . 3147 873 34 . . 459 1638 14 1049 . . 1373 137 6582 Guns 2548 | 40 100 244 . . 192 209 . . . 242 118 . 174 . . 484 . 745 Cannons 4245 | . . . . . 1138 220 . . . 26 . . 252 . . 416 . 2193 Explosions 3325 | . . . . . 1755 388 . . . 28 164 . 623 . . . . 367 Melee 5499 | . . . . . 62 . 34 . . 163 1353 . . . . 473 137 3277 Ramming 73 | . . . . . . 56 . . . . 3 14 . . . . . . Kinetic 2968 | 40 100 244 . . 755 . . . . 130 118 . . . . 72 . 1509 Thermal 3658 | . . . . . 854 817 . . . 138 . . 252 . . 828 . 769 Explosive 1619 | . . . . . 996 . . . . . . . 623 . . . . . Electromagnetic 1873 | . . . . . 480 . . . . 28 164 . 174 . . . . 1027 Impact 1540 | . . . . . 62 . 34 . . 163 1281 . . . . . . . Slashing 2375 | . . . . . . . . . . . 72 . . . . 473 137 1693 Piercing 1584 | . . . . . . . . . . . . . . . . . . 1584 Highest Corruption 84 | . . . . . 1 . . . . . 23 6 8 8 . 5 6 84 Average Corruption 17 | . . . . . 1 . . . . . 16 4 7 8 . 2 6 37 Corruption Purged . | . . . . . . . . . . . . . . . . . . . Corruption Blocked . | . . . . . . . . . . . . . . . . . . . Effects 292 | . . . . . 2 . . . . . 39 5 17 23 . 19 25 162 Message Errors 69 | . . . . . . . . . . . 12 . 5 7 . 3 7 35 Matter Fused 53 | . . . . . 1 . . . . . 7 1 5 2 . 4 6 27 Heat Flow Errors 37 | . . . . . . . . . . . 6 . 1 3 . 3 3 21 Energy Discharges 28 | . . . . . 1 . . . . . 3 1 . 5 . 3 3 12 Parts Rejected 4 | . . . . . . . . . . . . . 1 . . . . 3 Parts Fused 3 | . . . . . . . . . . . . . . 1 . . 1 1 Data Loss (minor) 33 | . . . . . . . . . . . 2 1 2 2 . 5 3 18 Data Loss (major) 14 | . . . . . . . . . . . 3 2 1 1 . . 2 5 Misfires 9 | . . . . . . . . . . . . . 1 1 . 1 . 6 Alerts 6 | . . . . . . . . . . . 2 . . 1 . . . 3 Misdirections 12 | . . . . . . . . . . . 2 . . . . . . 10 Weapon Failures 24 | . . . . . . . . . . . 2 . 1 . . . . 21 Overload Shots . | . . . . . . . . . . . . . . . . . . . Overflow Damage 1528 | . . . . . 116 96 9 . . 70 878 . . . . . 64 295 Projectiles 130 | . . . . . 9 . . . . . 52 . . . . . . 69 Explosions 204 | . . . . . 107 96 . . . . . . . . . . . 1 Melee 1194 | . . . . . . . 9 . . 70 826 . . . . . 64 225 Knockbacks 30 | . . . . . 5 . . . . 1 7 . . . . . . 17 Impact 6 | . . . . . . . . . . 1 5 . . . . . . . Kinetic 21 | . . . . . 5 . . . . . . . . . . . . 16 Secondary 3 | . . . . . . . . . . . 2 . . . . . . 1 Self-Inflicted Damage 634 | . . . . . 190 150 . . . 45 70 9 12 . . . . 158 Shots 29 | . . . . . 10 1 . . . 1 2 . 1 . . . . 14 Rammed 1 | . . . . . . . . . . . 1 . . . . . . . Targets Rammed 2 | . . . . . . . . . . . 1 1 . . . . . . Kicked 1 | . . . . . . . . . . . . 1 . . . . . . Crushed . | . . . . . . . . . . . . . . . . . . . Highest Temperature 744 | . . 21 . . 358 744 . . . 309 218 . 406 113 . 337 256 313 Average Temperature 118 | . . 9 . . 116 280 . . . 137 85 . 186 48 . 106 123 80 Received Heat Transfer 2747 | . . 177 . . 630 117 . 24 . 755 180 . 177 . . 216 9 462 Effects 13 | . . . . . . 10 . . . . . . 2 . . 1 . . Shutdowns 1 | . . . . . . 1 . . . . . . . . . . . . Energy Bleed 3 | . . . . . . 3 . . . . . . . . . . . . Interference 5 | . . . . . . 2 . . . . . . 2 . . 1 . . Short Circuit 1 | . . . . . . 1 . . . . . . . . . . . . Damage (major) 1 | . . . . . . 1 . . . . . . . . . . . . Damage (core) 2 | . . . . . . 2 . . . . . . . . . . . . Siege Activations . | . . . . . . . . . . . . . . . . . . . Martial Activations 1 | . . . . . . . . . . . . . . . . . . 1 Total Turns 1409 | . . . . . . . . . . . . . . . . . . 1409 Longest Duration 1409 | . . . . . . . . . . . . . . . . . . 1409 Shielding Activations . | . . . . . . . . . . . . . . . . . . . Robots Disrupted . | . . . . . . . . . . . . . . . . . . . Combat Hostiles . | . . . . . . . . . . . . . . . . . . . Robots Corrupted 14 | . . . . . . . 1 . . 1 9 . . . . . . 3 Combat Hostiles 10 | . . . . . . . 1 . . 1 5 . . . . . . 3 Parts Fried 35 | . . . . . 1 . 2 . . 1 25 . . . . . . 6 Impact Corruptions 33 | . . . . . . . 1 . . 3 29 . . . . . . . Robots Melted 3 | . . . . . . 1 . . . . . . . . . 1 . 1 Combat Hostiles 3 | . . . . . . 1 . . . . . . . . . 1 . 1 Parts Melted 12 | . . 1 . . 1 5 . . . . . . . . . 5 . . Heat Transferred 5048 | . . . . . 1175 931 . . . 205 . . 350 . . 1684 . 703 Parts Sabotaged . | . . . . . . . . . . . . . . . . . . . Parts Stolen . | . . . . . . . . . . . . . . . . . . . Parts Stripped . | . . . . . . . . . . . . . . . . . . . Power Chain Reactions 5 | . . . . . 3 . . . . 1 1 . . . . . . . Alert | -11 -10 -10 -10 -9 -8 -7 -7 -7 -7 -6 -6 -5 -5 -5 -4 -4 -4 -3 ------- Run | Yrd Mat Min Exi Min Mat Fac Low Low Dat Pro Fac Fac Upp Upp Fac Upp Upp Res Maximum Alert Level 3 | . . . . . 2 2 . . . . 3 1 . . . . . 1 Low Security (%) 63 | 100 100 100 . 100 43 84 . . . . . 41 . . 100 . . 76 Level 1 18 | . . . . . 39 9 . . . . . 58 . . . . . 23 Level 2 5 | . . . . . 17 6 . . . . 14 . . . . . . . Level 3 12 | . . . . . . . . . . . 85 . . . . . . . Level 4 . | . . . . . . . . . . . . . . . . . . . Level 5 . | . . . . . . . . . . . . . . . . . . . High Security . | . . . . . . . . . . . . . . . . . . . Max Security . | . . . . . . . . . . . . . . . . . . . Peak Influence 1074 | 5 . 158 . . 501 423 . . . . 1074 305 . . . . . 374 Initial 1074 | . . . . . . 203 . . . . 1074 305 . . . . . . Average 221 | 1 . 37 . . 212 126 . . . . 867 225 . . . . . 88 Influence Increases 5518 | 10 . 304 . . 1129 468 . 15 . 587 1367 28 200 . . 245 25 1140 Destroy 0b10 Robot/C 2460 | . . 240 . . 620 140 . . . 140 260 . 180 . . 160 . 720 Destroy 0b10 Robot/NC 140 | 10 . . . . 35 . . . . . 40 . . . . . 10 45 Destroy Leader 484 | . . 50 . . 124 40 . . . 30 50 . 20 . . 10 . 160 Allied During Kill 26 | . . 14 . . . . . . . 12 . . . . . . . . Successful Hack 102 | . . . . . 4 . . . . . 40 28 . . . . . 30 Disable Machine 300 | . . . . . 210 15 . . . . 30 . . . . . . 45 Anti-Garrison Action 150 | . . . . . . 150 . . . . . . . . . . . . Destroy Structure 281 | . . . . . 136 33 . . . . 32 . . . . . . 80 Advance Influence 900 | . . . . . . . . . . . 900 . . . . . . . Lose Combat Pursuer 675 | . . . . . . 90 . 15 . 405 15 . . . . 75 15 60 Influence Decreases 5205 | 10 . 275 29 . 682 499 235 116 80 310 1021 508 331 12 . 245 25 827 Entered New Map 1021 | . . . 29 . . 244 155 36 80 . 103 318 53 3 . . . . Time Decay 2868 | 10 . 275 . . 432 255 80 80 . 220 478 170 258 9 . 195 25 381 Search Patrol Dispatched 300 | . . . . . . . . . . . 300 . . . . . . . Lost Part 806 | . . . . . 100 . . . . 70 140 10 20 . . 50 . 416 Lost Ally 30 | . . . . . . . . . . 20 . 10 . . . . . . Purge Threat 180 | . . . . . 150 . . . . . . . . . . . . 30 Squads Dispatched 33 | . 2 1 . . 2 7 . . . 1 2 2 . . . . . 16 Investigation 8 | . . 1 . . 1 . . . . . . 1 . . . . . 5 Extermination 11 | . . . . . . 1 . . . . 2 1 . . . . . 7 Reinforcement 10 | . 2 . . . 1 3 . . . . . . . . . . . 4 Assault 3 | . . . . . . 2 . . . 1 . . . . . . . . Garrison 1 | . . . . . . 1 . . . . . . . . . . . . Intercept . | . . . . . . . . . . . . . . . . . . . Searches Triggered 3 | . . . . . . . . . . . 3 . . . . . . . Data Miner Redirects 3 | . . . . . . . . . . . . . . . . . . 3 Construction Impeded . | . . . . . . . . . . . . . . . . . . . Haulers Reinforced . | . . . . . . . . . . . . . . . . . . . Active Scanning Responses . | . . . . . . . . . . . . . . . . . . . Cargo Convoy Interrupts . | . . . . . . . . . . . . . . . . . . . Stealth | -11 -10 -10 -10 -9 -8 -7 -7 -7 -7 -6 -6 -5 -5 -5 -4 -4 -4 -3 --------- Run | Yrd Mat Min Exi Min Mat Fac Low Low Dat Pro Fac Fac Upp Upp Fac Upp Upp Res Distress Signals 12 | . 1 . . . 5 . . . . 1 1 . . . . . . 4 Communications Jammed . | . . . . . . . . . . . . . . . . . . . Distress Signals . | . . . . . . . . . . . . . . . . . . . Times Spotted 213 | . 2 13 . . 41 15 1 1 . 30 20 2 9 . . 16 1 62 Peak Tracking Total 12 | . 4 3 . . 6 4 1 1 . 12 6 1 5 . . 5 1 10 Tactical Retreats 25 | . . . . . . 3 . 1 . 11 1 . . . . 5 1 3 Traps | -11 -10 -10 -10 -9 -8 -7 -7 -7 -7 -6 -6 -5 -5 -5 -4 -4 -4 -3 ------- Run | Yrd Mat Min Exi Min Mat Fac Low Low Dat Pro Fac Fac Upp Upp Fac Upp Upp Res Traps Triggered 3 | . . . . . . . . . . . 2 . . . . . . 1 Indirectly . | . . . . . . . . . . . . . . . . . . . Trap Hack Attempts . | . . . . . . . . . . . . . . . . . . . Triggered . | . . . . . . . . . . . . . . . . . . . Disarmed . | . . . . . . . . . . . . . . . . . . . Reprogrammed . | . . . . . . . . . . . . . . . . . . . Reused . | . . . . . . . . . . . . . . . . . . . Traps Extracted . | . . . . . . . . . . . . . . . . . . . Installed 2 | . . 2 . . . . . . . . . . . . . . . . Triggered . | . . . . . . . . . . . . . . . . . . . Most Traps Carried 4 | . . 4 . . . . . . . . . . . . . . . . Machines | -11 -10 -10 -10 -9 -8 -7 -7 -7 -7 -6 -6 -5 -5 -5 -4 -4 -4 -3 ---------- Run | Yrd Mat Min Exi Min Mat Fac Low Low Dat Pro Fac Fac Upp Upp Fac Upp Upp Res Machines Disabled 24 | . . . . . 14 2 1 . . . 2 . . 1 . 1 . 3 Max in Single Turn 2 | . . . . . 2 2 1 . . . 2 . . 1 . 1 . 1 Garrison Access 2 | . . . . . . 2 . . . . . . . . . . . . Machines Repaired . | . . . . . . . . . . . . . . . . . . . Machines Dismantled . | . . . . . . . . . . . . . . . . . . . Machines Sabotaged . | . . . . . . . . . . . . . . . . . . . Overloaded Fab Kills . | . . . . . . . . . . . . . . . . . . . Hacking | -11 -10 -10 -10 -9 -8 -7 -7 -7 -7 -6 -6 -5 -5 -5 -4 -4 -4 -3 --------- Run | Yrd Mat Min Exi Min Mat Fac Low Low Dat Pro Fac Fac Upp Upp Fac Upp Upp Res Machines Accessed 37 | . 1 1 1 . 3 1 . . 4 . 7 3 . 1 . 3 1 11 Terminals 19 | . 1 . . . 3 . . . . . 4 2 . . . . 1 8 Fabricators 3 | . . . . . . . . . . . 2 . . . . . . 1 Repair Stations . | . . . . . . . . . . . . . . . . . . . Recycling Units . | . . . . . . . . . . . . . . . . . . . Scanalyzers 3 | . . . . . . . . . . . 1 . . . . . . 2 Garrison Access 2 | . . . . . . 1 . . . . . 1 . . . . . . Total Hacks 96 | . 3 1 1 . 6 2 . . 29 . 13 8 . 1 . 9 1 22 Successful 60 | . . 1 1 . 3 1 . . 29 . 8 2 . 1 . 9 1 4 Failed 36 | . 3 . . . 3 1 . . . . 5 6 . . . . . 18 Catastrophic 8 | . 1 . . . . . . . . . 1 2 . . . . . 4 Database Lockouts . | . . . . . . . . . . . . . . . . . . . Manual 40 | . 3 . 1 . 4 . . . . . 9 5 . . . . . 18 Terminals 43 | . 3 . . . 6 . . . . . 9 5 . . . . 1 19 Fabricators 3 | . . . . . . . . . . . 2 . . . . . . 1 Repair Stations . | . . . . . . . . . . . . . . . . . . . Recycling Units . | . . . . . . . . . . . . . . . . . . . Scanalyzers 4 | . . . . . . . . . . . 2 . . . . . . 2 Garrison Access 5 | . . . . . . 2 . . . . . 3 . . . . . . Terminal Hacks 44 | . . 1 1 . 1 . . . 29 . . . . 1 . 9 1 1 Record 20 | . . . . . . . . . 11 . . . . 1 . 7 1 . Part Schematic 11 | . . . . . . . . . 11 . . . . . . . . . Robot Schematic 4 | . . . . . . . . . 4 . . . . . . . . . Prototype ID Bank 3 | . . . . . . . . . 3 . . . . . . . . . Open Door 3 | . . 1 . . . . . . . . . . . . . 2 . . Unreport Threat 2 | . . . . . 1 . . . . . . . . . . . . 1 Proto ID Catalog 1 | . . . 1 . . . . . . . . . . . . . . . Fabricator Hacks 2 | . . . . . . . . . . . 2 . . . . . . . Build 2 | . . . . . . . . . . . 2 . . . . . . . Repair Station Hacks . | . . . . . . . . . . . . . . . . . . . Recycling Unit Hacks . | . . . . . . . . . . . . . . . . . . . Scanalyzer 2 | . . . . . . . . . . . 2 . . . . . . . Retrieve Study 2 | . . . . . . . . . . . 2 . . . . . . . Garrison Access Hacks 1 | . . . . . . 1 . . . . . . . . . . . . Seal Access 1 | . . . . . . 1 . . . . . . . . . . . . Unauthorized Hacks 11 | . . . . . 2 . . . . . 4 2 . . . . . 3 Terminals 11 | . . . . . 2 . . . . . 4 2 . . . . . 3 Assimilate 1 | . . . . . . . . . . . . 1 . . . . . . Botnet 10 | . . . . . 2 . . . . . 4 1 . . . . . 3 Fabricators . | . . . . . . . . . . . . . . . . . . . Repair Stations . | . . . . . . . . . . . . . . . . . . . Recycling Units . | . . . . . . . . . . . . . . . . . . . Scanalyzers . | . . . . . . . . . . . . . . . . . . . Garrison Access . | . . . . . . . . . . . . . . . . . . . Data Cores Recovered . | . . . . . . . . . . . . . . . . . . . Used . | . . . . . . . . . . . . . . . . . . . Hacking Detections 22 | . 1 . . . 2 1 . . . . 5 3 . . . . . 10 Full Trace Events 5 | . . . . . . . . . . . . 1 . . . . . 4 Feedback Events 1 | . . . . . . . . . . . . 1 . . . . . . Corruption 1 | . . . . . . . . . . . . 1 . . . . . . Feedback Blocked . | . . . . . . . . . . . . . . . . . . . Robot Schematics Acquired 4 | . . . . . . . . . 4 . . . . . . . . . Robots Built . | . . . . . . . . . . . . . . . . . . . Authchips . | . . . . . . . . . . . . . . . . . . . Time . | . . . . . . . . . . . . . . . . . . . Total Robot Build Rating . | . . . . . . . . . . . . . . . . . . . Part Schematics Acquired 11 | . . . . . . . . . 11 . . . . . . . . . Parts Built 2 | . . . . . . . . . . . 2 . . . . . . . Authchips . | . . . . . . . . . . . . . . . . . . . Time 106 | . . . . . . . . . . . 106 . . . . . . . Total Part Build Rating 16 | . . . . . . . . . . . 16 . . . . . . . Part Studies Acquired 1 | . . . . . . . . . . . 1 . . . . . . . Parts Repaired . | . . . . . . . . . . . . . . . . . . . Time . | . . . . . . . . . . . . . . . . . . . Parts Recycled . | . . . . . . . . . . . . . . . . . . . Recycled Matter . | . . . . . . . . . . . . . . . . . . . Retrieved Matter . | . . . . . . . . . . . . . . . . . . . Retrieved Components . | . . . . . . . . . . . . . . . . . . . Parts Scanalyzed . | . . . . . . . . . . . . . . . . . . . Part Schematics Acquired . | . . . . . . . . . . . . . . . . . . . Parts Damaged . | . . . . . . . . . . . . . . . . . . . Bothacking | -11 -10 -10 -10 -9 -8 -7 -7 -7 -7 -6 -6 -5 -5 -5 -4 -4 -4 -3 ------------ Run | Yrd Mat Min Exi Min Mat Fac Low Low Dat Pro Fac Fac Upp Upp Fac Upp Upp Res Used RIF Installer . | . . . . . . . . . . . . . . . . . . . Robots Hacked 1 | . . . . . . . . . . . 1 . . . . . . . Non-combat 1 | . . . . . . . . . . . 1 . . . . . . . Combat . | . . . . . . . . . . . . . . . . . . . Robot Hacks Applied 1 | . . . . . . . . . . . 1 . . . . . . . find_chute 1 | . . . . . . . . . . . 1 . . . . . . . Relay Couplers Released 3 | . . . . . . 3 . . . . . . . . . . . . Machine Destruction 3 | . . . . . . 3 . . . . . . . . . . . . Fabnet Peak Effective % . | . . . . . . . . . . . . . . . . . . . Robots Rewired . | . . . . . . . . . . . . . . . . . . . Allies Hacked . | . . . . . . . . . . . . . . . . . . . Hacks Repelled . | . . . . . . . . . . . . . . . . . . . Allies | -11 -10 -10 -10 -9 -8 -7 -7 -7 -7 -6 -6 -5 -5 -5 -4 -4 -4 -3 -------- Run | Yrd Mat Min Exi Min Mat Fac Low Low Dat Pro Fac Fac Upp Upp Fac Upp Upp Res Total Allies 3 | . . 1 . . . . . . . 1 . 1 . . . . . . Largest Group 1 | . . 1 1 . . . . . . 1 . 1 . . . . . . Highest-Rated Group 96 | . . 31 31 . . . . . . 96 . 26 . . . . . . Highest-Rated Ally 96 | . . 31 31 . . . . . . 96 . 26 . . . . . . Total Orders . | . . . . . . . . . . . . . . . . . . . Ally Attacks 46 | . . 24 . . . . . . . 22 . . . . . . . . Total Damage 1439 | . . 337 . . . . . . . 1102 . . . . . . . . Kills 7 | . . 5 . . . . . . . 2 . . . . . . . . Allies Corrupted . | . . . . . . . . . . . . . . . . . . . Allies Melted . | . . . . . . . . . . . . . . . . . . . Intel | -11 -10 -10 -10 -9 -8 -7 -7 -7 -7 -6 -6 -5 -5 -5 -4 -4 -4 -3 ------- Run | Yrd Mat Min Exi Min Mat Fac Low Low Dat Pro Fac Fac Upp Upp Fac Upp Upp Res Active Infowar (turns) 9178 | 32 201 979 520 97 158 . . . . . 43 344 632 700 155 1368 791 3158 Optics 7191 | . . . . . . . . . . . 43 344 632 700 155 1368 791 3158 Seismic 1987 | 32 201 979 520 97 158 . . . . . . . . . . . . . Robot Analysis Total . | . . . . . . . . . . . . . . . . . . . Derelict Logs Recovered 8 | . . 1 . . . . 2 1 . 1 . . 1 . . 1 1 . Drone Launches . | . . . . . . . . . . . . . . . . . . . Drone Recoveries . | . . . . . . . . . . . . . . . . . . . Exploration | -11 -10 -10 -10 -9 -8 -7 -7 -7 -7 -6 -6 -5 -5 -5 -4 -4 -4 -3 ------------- Run | Yrd Mat Min Exi Min Mat Fac Low Low Dat Pro Fac Fac Upp Upp Fac Upp Upp Res Turns Passed 13002 | 97 201 979 520 97 1253 616 169 177 34 490 1221 344 632 700 155 1368 791 3158 Spaces Moved 9334 | 53 112 581 341 60 479 519 410 454 88 932 853 312 530 626 137 1138 339 1370 Core 93 | 7 . . . . 1 . . . . . 10 75 . . . . . . Treads 1575 | 46 112 581 341 60 435 . . . . . . . . . . . . . Legs 4372 | . . . . . . . . . . . . 237 530 626 137 1138 339 1365 Wheels 409 | . . . . . 43 . . . . 13 353 . . . . . . . Hover . | . . . . . . . . . . . . . . . . . . . Flight 2885 | . . . . . . 519 410 454 88 919 490 . . . . . . 5 Fastest Speed 35 | 50 160 152 152 152 125 39 39 39 39 39 35 50 110 110 110 110 110 110 Average Speed 110 | 145 160 154 152 152 211 48 39 39 39 42 104 95 110 110 110 110 136 161 Slowest Speed 850 | 160 160 160 152 152 850 50 39 39 39 130 450 110 110 110 110 110 180 540 Overloaded Moves 431 | . . . . . . . . . . . . . . . . . . 431 Propulsion Burnouts . | . . . . . . . . . . . . . . . . . . . Robots Hopped . | . . . . . . . . . . . . . . . . . . . Potential Cave-ins 2 | . . . . . . . . . . . 2 . . . . . . . Cave-ins Triggered 1 | . . . . . . . . . . . 1 . . . . . . . Exploration Rate (%) 47 | 4 25 95 69 19 54 16 66 67 70 91 21 8 72 58 4 89 49 34 Regions Visited 18 Branch Regions 11 Pre-discovered Areas 3 | . . 1 . . . . . . 1 . . . . . . 1 . . Known Exits Taken 8 | . . . . . . . 1 . . . 1 1 1 1 1 1 1 . Unknown Exits Taken 10 | 1 1 1 1 1 1 1 . 1 1 1 . . . . . . . . Scrap Searched 19 | . . 1 . 1 . . 4 2 . 1 . . 1 4 . 2 3 . Spaces Dug 60 | . . . . . 3 9 . . . 1 34 . . 7 . . . 6 Terrain Destroyed 354 | . . . . . 142 36 . . . 6 34 . 77 8 . 13 . 38 Melee 53 | . . . . . 3 9 . . . 1 34 . . . . . . 6 Projectile 52 | . . . . . 16 . . . . . . . 7 1 . 3 . 25 AOE 248 | . . . . . 123 26 . . . 5 . . 70 7 . 10 . 7 Terrain Rammed 2 | . . . . . . 1 . . . . . 1 . . . . . . Walls Destroyed 1 | . . . . . . 1 . . . . . . . . . . . . Machines Disabled . | . . . . . . . . . . . . . . . . . . . Actions | -11 -10 -10 -10 -9 -8 -7 -7 -7 -7 -6 -6 -5 -5 -5 -4 -4 -4 -3 --------- Run | Yrd Mat Min Exi Min Mat Fac Low Low Dat Pro Fac Fac Upp Upp Fac Upp Upp Res Total 11128 | 69 120 628 343 66 594 850 412 453 87 995 1040 354 547 631 141 1191 665 1942 Wait 1072 | . . 10 . 5 15 285 . . . 33 86 29 . . . 9 318 282 Move 9318 | 52 111 580 340 59 478 518 409 453 87 931 853 312 529 625 136 1137 338 1370 Hop . | . . . . . . . . . . . . . . . . . . . Pick Up 74 | 8 2 8 1 2 12 9 . . . . 7 2 . . 2 3 4 14 Fast Attach 74 | 1 . . . . 4 1 . . . 3 8 6 2 3 . 5 1 40 Attach 56 | 6 . . . . 13 3 . . . 3 5 4 . . 1 3 . 18 Detach 13 | . . . . . 4 . . . . 1 1 . . . . . 1 6 Swap 14 | . . 2 1 . 1 4 . . . 1 1 . . . 1 . . 3 Drop 29 | . . 7 1 . 2 7 . . . 4 . . . 1 1 1 1 4 Fire 246 | 2 7 19 . . 60 13 . . . 14 15 . 13 2 . 16 . 85 Melee 225 | . . . . . 5 9 3 . . 5 64 . . . . 17 2 120 Ram 2 | . . . . . . 1 . . . . . 1 . . . . . . Kick . | . . . . . . . . . . . . . . . . . . . Crush . | . . . . . . . . . . . . . . . . . . . Escape Stasis . | . . . . . . . . . . . . . . . . . . . Rewire 3 | . . . . . . . . . . . . . 3 . . . . . Trap 2 | . . 2 . . . . . . . . . . . . . . . . Miscellaneous . | . . . . . . . . . . . . . . . . . . . Route ------- -11/Scrapyard -10/Materials -10/Mines (discovered 3 exits: [*Mat x2] / *Exi) -10/Exiles -9/Mines -8/Materials -7/Factory -7/Lower Caves -7/Lower Caves -7/Data Miner -6/Proximity Caves -6/Factory (discovered 2 exits: *Fac / Low) -5/Factory -5/Upper Caves -5/Upper Caves -4/Factory -4/Upper Caves -4/Upper Caves -3/Research (discovered 3 exits: Res / *Tes x2) History --------- Turn | Location | Event 19 | -11/Scrapyard | Discovered new exit (range 16) 98 | -11/Scrapyard | Entered Materials 275 | -10/Materials | Discovered new exit (range 13) 299 | -10/Materials | Entered Mines 306 | -10/Mines | Escorted by a lone wolf Derelict 308 | -10/Mines | Build established: Mutant 328 | -10/Mines | Learned location of Storage (-9) 484 | -10/Mines | Found a hidden stash of uninstalled traps 558 | -10/Mines | Found a Scrap Suit stashed away for nefarious purposes 567 | -10/Mines | Found Scrap Suit 626 | -10/Mines | Met a Derelict shopkeep closing up shop 962 | -10/Mines | Learned Materials terminal intel 967 | -10/Mines | Assembled infested the area 972 | -10/Mines | Assisted by a Guerilla fighting off Assembled 1126 | -10/Mines | Discovered new exit (range 13) 1241 | -10/Mines | Discovered new exit (range 5) 1267 | -10/Mines | Deemed a non-threat by the Exiles lab entrance 1267 | -10/Mines | Discovered new exit (range 5) 1278 | -10/Mines | Entered Exiles 1278 | -10/Exiles | Accompanied by 1 ally 1315 | -10/Exiles | Met 8R-AWN 1344 | -10/Exiles | Met EX-HEX 1418 | -10/Exiles | Met EX-DEC 1558 | -10/Exiles | Met EX-BIN 1582 | -10/Exiles | Aligned with FarCom system 1584 | -10/Exiles | Given EX-Vault access code 1619 | -10/Exiles | Opened EX-Vault 1625 | -10/Exiles | Found Prototype Flight Unit 1628 | -10/Exiles | Identified Flying Fortress v7 1659 | -10/Exiles | Warned to stay clear of 0b10 Research branches 1781 | -10/Exiles | Discovered new exit (range 14) 1798 | -10/Exiles | Left Exiles lab with Flying Fortress v7 1798 | -10/Exiles | Entered Mines 1817 | -9/Mines | Received a Rocket Launcher from a helpful Derelict 1872 | -9/Mines | Discovered new exit (range 14) 1895 | -9/Mines | Entered Materials 1895 | -8/Materials | Evolved 4 slots: Propulsion x2, Weapon x2 1896 | -8/Materials | Loaded intel: 12 terminal locations 2207 | -8/Materials | Build established: Skirmisher 2859 | -8/Materials | Build established: Mutant 2965 | -8/Materials | Destroyed 7 combat bots 2989 | -8/Materials | Discovered new exit (range 7) 3148 | -8/Materials | Entered Factory 3148 | -7/Factory | Evolved 2 slots: Propulsion x1, Utility x1 3450 | -7/Factory | Build established: Hacker-Skirmisher 3716 | -7/Factory | Destroyed 7 combat bots 3759 | -7/Factory | Discovered new exit (range 13) 3764 | -7/Factory | Entered Lower Caves 3837 | -7/Lower Caves | Encountered a Warlord checkpoint 3853 | -7/Lower Caves | Identified exit to Lower Caves 3897 | -7/Lower Caves | Attacked by a delusional Derelict stockpiling parts 3933 | -7/Lower Caves | Entered another Lower Caves area 3953 | -7/Lower Caves | Spotted B-75 Beast 4063 | -7/Lower Caves | Build established: Hacker-Gunner 4066 | -7/Lower Caves | Learned Factory terminal intel 4100 | -7/Lower Caves | Discovered new exit (range 9) 4110 | -7/Lower Caves | Entered Data Miner 4110 | -7/Data Miner | Discovered new exit (range 6) 4118 | -7/Data Miner | Met Data Miner 4128 | -7/Data Miner | Learned location of Section 7 (-2) 4128 | -7/Data Miner | Acquired the access code to Warlord's prototype stash 4135 | -7/Data Miner | Received God Mode back door access code from Data Miner 4144 | -7/Data Miner | Entered Proximity Caves 4146 | -6/Proximity Caves | Spotter reported a threat 4147 | -6/Proximity Caves | Spotter reported a threat 4157 | -6/Proximity Caves | Attracted the attention of an 0b10 outpost 4178 | -6/Proximity Caves | Learned Factory terminal intel 4199 | -6/Proximity Caves | Spotter reported a threat 4200 | -6/Proximity Caves | Spotter reported a threat 4253 | -6/Proximity Caves | Spotter reported a threat 4255 | -6/Proximity Caves | Attracted the attention of an 0b10 checkpoint 4257 | -6/Proximity Caves | Spotter reported a threat 4266 | -6/Proximity Caves | Spotted B-75 Beast 4297 | -6/Proximity Caves | Core integrity fell below 50% 4315 | -6/Proximity Caves | Escorted by Enhanced Grunt 4347 | -6/Proximity Caves | Lost 7 parts (1p2n4w) 4521 | -6/Proximity Caves | Spotter reported a threat 4571 | -6/Proximity Caves | Build established: Hacker-Mutant 4631 | -6/Proximity Caves | Discovered new exit (range 9) 4634 | -6/Proximity Caves | Entered Factory 4634 | -6/Factory | Evolved 2 slots: Propulsion x1, Utility x1 4635 | -6/Factory | Identified exit to Lower Caves 4636 | -6/Factory | Loaded intel: 26 terminal locations 4898 | -6/Factory | Fabricated Particle Reactor? 4984 | -6/Factory | Search patrols dispatched 5035 | -6/Factory | System corruption reached 10% 5065 | -6/Factory | Lost 6 parts (1p1n2u2w) 5079 | -6/Factory | Destroyed 7 combat bots 5201 | -6/Factory | Crushed by falling debris 5334 | -6/Factory | Search patrols dispatched 5347 | -6/Factory | Build established: Mutant 5684 | -6/Factory | Search patrols dispatched 5826 | -6/Factory | Lost 3 parts (2u1w) 5850 | -6/Factory | Discovered new exit (range 14) 5855 | -6/Factory | Identified exit to Factory 5855 | -6/Factory | Entered another Factory area 5855 | -5/Factory | Evolved 2 slots: Utility x2 5856 | -5/Factory | Loaded intel: 26 terminal locations 6180 | -5/Factory | Build established: Skirmisher 6189 | -5/Factory | Discovered new exit (range 10) 6198 | -5/Factory | Identified exit to Upper Caves 6199 | -5/Factory | Entered Upper Caves 6200 | -5/Upper Caves | Encountered a Warlord checkpoint 6205 | -5/Upper Caves | Learned Factory garrison access intel 6455 | -5/Upper Caves | Attracted the attention of an 0b10 checkpoint 6514 | -5/Upper Caves | Build established: Gunner 6663 | -5/Upper Caves | Discovered new exit (range 8) 6670 | -5/Upper Caves | Identified exit to Upper Caves 6831 | -5/Upper Caves | Entered another Upper Caves area 6915 | -5/Upper Caves | Discovered new exit (range 14) 7023 | -5/Upper Caves | Identified exit to Factory 7078 | -5/Upper Caves | Found Alien Artifact 7078 | -5/Upper Caves | Identified Dimensional Node Initializer 7078 | -5/Upper Caves | Initialized slip node 7531 | -5/Upper Caves | Entered Factory 7531 | -4/Factory | Evolved 2 slots: Propulsion x2 7532 | -4/Factory | Loaded intel: 4 garrison access locations 7603 | -4/Factory | Discovered new exit (range 21) 7641 | -4/Factory | Identified exit to Upper Caves 7686 | -4/Factory | Entered Upper Caves 7752 | -4/Upper Caves | Learned location of 1 exit from Research 7818 | -4/Upper Caves | Learned location of 1 exit from Factory 7818 | -4/Upper Caves | Learned Armory trap positions 7823 | -4/Upper Caves | Lost 5 parts (2u3w) 8211 | -4/Upper Caves | Build established: Hacker-Gunner 8334 | -4/Upper Caves | Encountered a Warlord checkpoint 9031 | -4/Upper Caves | Discovered new exit (range 22) 9053 | -4/Upper Caves | Identified exit to Upper Caves 9054 | -4/Upper Caves | Entered another Upper Caves area 9055 | -4/Upper Caves | Identified exit to Research 9631 | -4/Upper Caves | Spotted B-86 Titan 9820 | -4/Upper Caves | Build established: Hauler-Gunner 9845 | -4/Upper Caves | Entered Research 9845 | -3/Research | Evolved 2 slots: Power x1, Utility x1 9846 | -3/Research | Identified exit to Testing 9847 | -3/Research | Identified exit to Research 10072 | -3/Research | Found Gamma Bomb Array 10307 | -3/Research | Build established: Skirmisher 10365 | -3/Research | System corruption reached 10% 10395 | -3/Research | Lost 7 parts (3n1u3w) 10625 | -3/Research | Build established: Mutant 11129 | -3/Research | Build established: Gunner 11512 | -3/Research | Incoming investigation squad redirected 11562 | -3/Research | Incoming investigation squad redirected 11580 | -3/Research | Found Prototype Protection 11580 | -3/Research | Identified Centrium Heavy Armor Plating 11587 | -3/Research | System corruption reached 30% 11652 | -3/Research | Lost 12 parts (2p4n2u4w) 11821 | -3/Research | Lost 4 parts (1p2n1u) 11925 | -3/Research | Found Powered Armor 11943 | -3/Research | Found Powered Armor 12162 | -3/Research | Build established: Scavenger-Gunner 12184 | -3/Research | Core integrity fell below 50% 12285 | -3/Research | Lost 8 parts (2p4n2w) 12497 | -3/Research | Core integrity fell below 20% 12512 | -3/Research | Lost 5 parts (2p1n1u1w) 12652 | -3/Research | Discovered exit to Testing (range 18) 12807 | -3/Research | Build established: Scavenger-Skirmisher 12811 | -3/Research | Incoming investigation squad redirected 13003 | -3/Research | Destroyed by G-67 Veteran with Plasma Rifle Last Messages --------------- 12986_ P-80 Master resets P-80 Master, system corruption cleaned. 12987_ Gamma Bomb Array destroyed. 12989_ System corrupted: Matter fused (-9). 12989_ P-80 Master resets P-80 Master, system corruption cleaned. 12990_ Lgt. Antimatter Reactor destroyed. 12993_ Coil Gun destroyed. 12994_ Dropped Lrg. Storage Unit. 12995_ M-36 Artificer repairs P-80 Master. 12997_ Hpw. Shotgun destroyed. 12997_ M-36 Artificer repairs P-80 Master. 12999_ M-36 Artificer repairs P-80 Master Imp. Antigrav System. 13000_ Energy Well destroyed. 13000_ P-80 Master resets P-80 Master, system corruption cleaned. 13001_ Acquired 33 matter. 13001_ M-36 Artificer repairs P-80 Master Gamma Rifle. Map ----- +----------------------------------------------------+ | ???# + + #???????????????????????? | | ???# # ^ # #???????????????????????? | | ???# = # # #???????????????????????? | | ???# # ""# #???????????????????????? | | ???###### ^ ^ ""########???????????????????????? | | ???#= # ""#??????????????????????????????? | | ???# # T#??????????????????????????????? | | ???# # ""##########?????????????????????? | | ???# # ""# #+#???????????????????? | | ???# + ""# # #???????????????????? | | ???# # #""" # #???????????????????? | | ???# # #"T # ????Y??????????????? | | ???# + #""" # #???????????????????? | | ???# ####### # # #???????????????????? | | ???###+##?????# # # #???????????????????? | | ?????# #??????# # ! # #???????????????????? | | ?????# #??????# # # #???????????????????? | | ???###+######## ### ## ########????????????? | | ???# # # #????????????? | | ???# # # #????????????? | | ???# # /m #????????????? | | ???# + % pp!= #????????????? | | ???# # =! ! #????????????? | | ???# # g #????????????? | | ???# # [g #######????????????? | | ???# # @ g%[ #???????????????? | | ???####+###### =ggg #???????????????? | | ??????# #????# g +??????????? | | ??????# #????# ######??????????? | | ??????# #????# g #???????????????? | | ??????# #????####+######### #???????????????? | | ??????# #?????????????????##=% #???????????????? | | ??????# #??????????????????# ! #???????????????? | | ?????## ####???????????????# #???????????????? | | ?????# +???????????????# #???????????????? | | ?????# ###???????????????# +???????????????? | | ?????# #?????????????????# # ??????????????? | | ?????# #?????????????????# ##??????????????? | | ?????# #?????????????????# #???????????????? | | ?????# #?????????????????# #???????????????? | | ?????# #?????????????????# #???????????????? | | ?????# #?????????????????# #???????????????? | | ?????# #?????????????????? +???????????????? | | ?????# #?????????????????? #???????????????? | | ?????# #?????????????????? #???????????????? | | ?????# #?????????????????? #???????????????? | | ?????# #??????????????????? #???????????????? | | ?????# #???????????????????? ?????????????????? | | ?????# #???????????????????????????????????????? | | ?????# #???????????????????????????????????????? | +----------------------------------------------------+ Best States ------------- Heat Dissipation 48 Coolant Potential 100 Energy Generation 43 Energy Capacity 760 Matter Stores 300 Matter Capacity 300 Sight Range 23 Terrain Scan Density 10 Base Temperature (-) 200 Armor Coverage 600 Propulsion Shielding 66 Evasion (%) 70 Targeting Accuracy 8 Target Analysis 8 Core Analysis 6 Recoil Reduction 2 Offensive Hacking 20 Defensive Hacking 10 Item Schematics ----------------- Combat Drone Bay | -7/Data Miner | Free Lgt. Regenerative Plating | -7/Data Miner | Free Cld. Cesium-ion Thruster | -7/Data Miner | Free Thermal Defense Suite | -7/Data Miner | Free Com. Ion Cannon | -7/Data Miner | Free Imp. Kinecellerator | -7/Data Miner | Free Antigrav System | -7/Data Miner | Free Imp. Plasma Cutter | -7/Data Miner | Free Coil Gun | -7/Data Miner | Free Hvy. Disruptor Cannon | -7/Data Miner | Free Adv. Trap Scanner | -7/Data Miner | Free Robot Schematics ------------------ H-66 Slayer | -7/Data Miner | Free L-41 Fighter | -7/Data Miner | Free G-47 Trooper | -7/Data Miner | Free H-55 Commando | -7/Data Miner | Free Fabricated ------------ Particle Reactor | x2 | -6/Factory | Preloaded Repaired ---------- Nothing Studied --------- VTOL Module | -6/Factory | Hacked Alien Tech Used ----------------- Dimensional Node Initializer Achievements -------------- Martial Artist Metal Spider Not Today, Chutes Physics Protects Z1$+NX3F=JRE3_ZNQR Challenges ------------ None Game ------ Seed ScatterCompactScreen Manual? 0 Play Time 01:32:20 Cumulative 110.1 hours Start 2026.07.02 @ 01:06:57 End 2026.07.02 @ 02:38:00 Sessions 1 Manual Loads 0 Difficulty Rogue Special Mode None Game No. 234 Rogue 234 Adventurer 0 Explorer 0 Win Type - Total 0 Types 0/0/0/0/0/0/0/0/0/0 Lore% 50 Gallery% 50 Achievement% 41 Wizard Run 0 Options --------- Layout 1 ASCII 0 Keyboard 1 Movement Arrows Keybinds 0 Fullscreen 2 Font 24/Smallcaps Map View 50x35 Zoom Use 0% Tactical HUD 1 Map Filters NONE Filters NONE Steam 1 RUN: da0e8356-324e-4ffd-93b3-46fcc44c35f8